bitfinex-derivatives/quotes_ETHF0:USTF0_20230104
["timestamp","ask_amount","ask_price","bid_price","bid_amount"]
[1672801623510,3.0073,1243.7,1243.5,1.615]
[1672801623715,1.1814,1244.1,1243.6,24.2389]
[1672801623930,4.6233,1244.2,1243.7,3.0073]
[1672801624241,3.0073,1244.1,1243.7,4.618]
[1672801624456,0.4093,1244.1,1243.7,3.0]
[1672801624661,1.607,1244.1,1243.7,3.0]
[1672801624977,1.1814,1244.4,1244.1,1.619]
[1672801625192,3.0073,1244.5,1244.1,1.619]
[1672801625193,1.69207014,1245.0,1244.3,3.237]
[1672801625511,3.0073,1245.8,1244.9,5.0]
[1672801625717,4.1183,1246.0,1244.9,3.0073]
[1672801625922,1.111,1246.0,1245.6,24.2389]
[1672801626133,0.10575606,1246.7,1246.0,3.0073]
[1672801626349,0.98093683,1246.7,1246.6,27.2462]
[1672801626558,10.35077902,1247.1,1246.7,3.0]
[1672801626765,10.2308793,1247.3,1246.7,3.0]
[1672801626766,3.611,1248.0,1247.0,27.2462]
[1672801626976,3.611,1248.0,1247.7,3.0073]
[1672801627191,1.1814,1248.6,1247.9,24.2389]
[1672801627399,1.14935514,1248.6,1248.2,3.0073]
[1672801627616,5.0,1249.0,1248.4,3.0073]
[1672801627822,1.1814,1248.4,1248.2,3.0073]
[1672801628138,1.1814,1248.4,1246.8,10.6015]
[1672801628139,0.0001,1248.4,1247.4,5.0]
[1672801628342,3.0,1248.9,1248.3,3.223]
[1672801628554,0.7611,1249.1,1248.4,0.6008]
[1672801628872,1.1814,1248.0,1247.5,3.0073]
[1672801629079,0.0003,1248.2,1247.9,2.8911]
[1672801629287,3.0073,1249.2,1248.6,1.1814]
[1672801629502,3.01934595,1249.8,1249.1,10.502]
[1672801629709,3.0073,1250.6,1249.7,3.0073]
[1672801629927,3.0073,1250.2,1249.4,3.0073]
[1672801630133,3.0,1249.9,1249.2,1.623]
[1672801630345,30.5981,1250.0,1249.9,1.605]
[1672801630661,3.0073,1250.6,1249.9,33.0379]
[1672801630970,3.0073,1253.5,1252.0,3.0]
[1672801631183,3.0073,1253.0,1252.0,3.0]
[1672801631385,3.0073,1253.4,1252.9,4.868]
[1672801631599,4.1632,1254.5,1253.0,6.1814]
[1672801631812,1.76308243,1255.0,1253.9,5.0]
[1672801632019,3.0073,1255.8,1254.9,4.839]
[1672801632232,3.0073,1255.8,1254.9,42.164]
[1672801632436,0.96083227,1255.2,1254.9,0.79400017]
[1672801632645,1.17439983,1254.9,1253.6,3.0073]
[1672801632857,1.17439983,1254.9,1252.9,3.0073]
[1672801632858,3.0073,1254.4,1252.9,3.0073]
[1672801633072,1.17439983,1254.9,1253.4,1.86817702]
[1672801633286,1.612,1254.6,1253.5,0.27935889]
[1672801633501,3.0073,1253.8,1250.8,5.0]
[1672801633704,3.0073,1253.0,1251.4,3.0073]
[1672801633913,3.0073,1252.9,1251.5,3.0073]
[1672801634230,1.17439983,1254.9,1251.7,3.0]
[1672801634231,3.0073,1253.0,1251.7,3.0]
[1672801634441,3.0073,1254.7,1252.9,3.0073]
[1672801634645,3.0073,1254.8,1253.3,3.0073]
[1672801634858,3.237,1253.4,1252.4,3.0073]
[1672801635066,3.0073,1253.8,1252.1,1.2949]
[1672801635275,3.0073,1253.8,1251.6,4.3832]
[1672801635276,1.622,1252.5,1251.6,4.3832]
[1672801635487,1.6353,1253.1,1251.7,1.609]
[1672801635696,4.1928,1255.7,1252.7,1.619]
[1672801635907,4.1928,1255.7,1252.4,2.0]
[1672801635908,3.0073,1253.3,1252.5,3.0]
[1672801636117,1.619,1252.8,1252.1,3.0]
[1672801636435,3.0073,1253.2,1252.5,11.86096208]
[1672801636643,0.5983,1253.6,1253.1,3.0073]
[1672801636859,3.0073,1255.4,1254.3,3.0073]
[1672801637066,3.0,1255.3,1254.3,24.2935]
[1672801637277,3.7065,1254.4,1254.0,3.0073]
[1672801637588,1.605,1254.4,1253.9,9.1326]
[1672801637799,1.61,1254.9,1252.7,12.19322061]
[1672801637800,4.1887,1255.2,1254.3,24.08475883]
[1672801638003,3.0073,1254.4,1252.8,0.5987]
[1672801638216,4.0384679,1254.3,1253.9,2.75407738]
[1672801638425,1.1814,1253.9,1253.2,20.9615321]
[1672801638639,3.0073,1253.3,1252.6,0.5933]
[1672801638849,3.0073,1253.1,1252.2,1.1814]
[1672801639061,3.0,1252.4,1251.7,20.9615321]
[1672801639264,1.1814,1253.9,1251.3,4.1887]
[1672801639265,3.0073,1251.8,1251.3,4.1887]
[1672801639477,2.45497096,1251.8,1251.7,20.9615321]
[1672801639687,0.5985,1253.1,1251.9,3.0]
[1672801639898,1.626,1253.2,1253.0,3.0]
[1672801640114,3.0,1253.4,1253.1,3.0073]
[1672801640326,1.1814,1253.1,1252.1,1.1814]
[1672801640528,10.542,1252.2,1251.9,5.9615321]
[1672801640743,10.542,1252.2,1251.4,3.0073]
[1672801640744,1.634,1252.5,1252.1,20.9615321]
[1672801640953,1.617,1253.2,1252.4,30.9615321]
[1672801641162,10.2933,1253.9,1253.0,20.9615321]
[1672801641370,4.1887,1254.1,1252.6,20.9615321]
[1672801641582,3.0,1252.7,1252.3,20.9615321]
[1672801641795,4.6163,1252.8,1252.1,20.9615321]
[1672801642002,1.609,1252.8,1252.6,20.9615321]
[1672801642222,3.007,1252.7,1252.6,14.9929]
[1672801642421,6.007,1252.7,1252.2,20.9544321]
[1672801642627,2.63971989,1252.7,1252.6,10.43523519]
[1672801642842,6.935,1252.6,1252.5,20.82438249]
[1672801643053,12.9423,1252.6,1252.1,20.82438249]
[1672801643260,11.504,1252.1,1252.0,5.0]
[1672801643474,11.504,1252.1,1251.7,5.0]
[1672801643685,3.0073,1252.4,1252.0,19.51168249]
[1672801643904,3.233,1252.1,1251.7,5.0]
[1672801644208,3.0073,1252.2,1252.0,5.0]
[1672801644418,9.935,1252.6,1252.1,13.0073]
[1672801644419,6.935,1252.6,1252.1,13.0073]
[1672801644630,6.935,1252.6,1252.5,3.0073]
[1672801644838,0.011,1252.5,1252.4,10.02251099]
[1672801645054,1.621,1252.5,1252.4,20.02251099]
[1672801645265,3.0,1252.6,1252.4,2.02051099]
[1672801645467,3.0,1252.6,1251.7,10.0]
[1672801645681,3.0,1251.9,1251.3,10.0]
[1672801645890,3.0,1251.9,1251.8,0.17941713]
[1672801646100,3.0,1251.9,1251.4,16.0073]
[1672801646101,0.175,1251.8,1251.6,0.28940832]
[1672801646312,0.175,1251.8,1250.8,3.0]
[1672801646634,6.0073,1252.0,1250.8,6.0073]
[1672801646832,3.0073,1251.8,1251.3,10.0]
[1672801647152,3.0073,1251.9,1251.7,10.0]
[1672801647366,3.0073,1252.5,1251.8,1.1814]
[1672801647677,3.0073,1252.1,1251.5,10.0]
[1672801647888,6.0073,1252.1,1251.6,0.5]
[1672801648096,3.0073,1251.9,1251.4,5.0]
[1672801648307,3.0,1251.8,1251.6,5.0]
[1672801648515,3.0073,1251.9,1251.4,5.0]
[1672801648932,6.0073,1251.7,1251.2,10.0]
[1672801649148,3.0073,1252.3,1251.6,5.0]
[1672801649353,3.0073,1252.7,1251.6,6.1814]
[1672801649564,3.0073,1252.7,1250.8,7.29]
[1672801649565,3.0,1252.1,1251.7,5.0]
[1672801649775,6.0073,1252.3,1251.7,5.0]
[1672801650091,19.3771,1253.4,1251.4,5.0]
[1672801650092,6.0073,1251.8,1251.4,5.0]
[1672801650303,3.0,1252.2,1251.7,5.0]
[1672801650619,3.0073,1252.6,1252.1,5.0]
[1672801650837,3.0073,1252.7,1252.4,5.0]
[1672801651048,3.0073,1252.9,1252.1,3.0073]
[1672801651251,3.0073,1252.9,1252.1,5.0]
[1672801651565,3.0073,1252.7,1252.1,15.0]
[1672801651780,3.0073,1252.7,1252.3,0.5]
[1672801651992,3.0073,1252.7,1252.2,5.0]
[1672801652195,3.0073,1252.5,1252.2,5.0]
[1672801652612,3.0073,1252.3,1252.2,5.0]
[1672801652821,6.0,1253.1,1252.3,0.5]
[1672801652822,3.0073,1253.0,1252.3,0.5]
[1672801653031,3.0,1253.1,1252.7,5.0]
[1672801653248,3.0,1253.1,1252.5,5.0]
[1672801653676,3.0073,1253.0,1252.5,5.0]
[1672801653875,3.0073,1252.8,1251.9,8.0073]
[1672801654090,3.0073,1253.0,1252.5,5.0]
[1672801654300,3.0,1253.1,1252.5,5.0]
[1672801654511,7.2111,1253.6,1252.9,3.0073]
[1672801654722,4.2038,1253.6,1253.4,3.0073]
[1672801654932,6.0073,1253.8,1252.6,5.0]
[1672801655147,3.0,1253.6,1252.9,3.0073]
[1672801655359,1.1814,1253.5,1252.9,3.0073]
[1672801655884,3.0,1253.4,1252.9,3.0073]
[1672801656305,6.0073,1253.4,1252.9,3.0073]
[1672801656523,1.1814,1253.3,1252.9,3.0073]
[1672801656836,3.0073,1253.0,1252.1,3.0073]
[1672801657033,3.0073,1252.7,1251.9,3.0073]
[1672801657241,8.0073,1252.7,1251.9,3.0073]
[1672801657460,3.0073,1252.5,1251.7,3.0073]
[1672801657769,5.0,1252.9,1251.9,3.0073]
[1672801657770,3.0073,1252.7,1251.9,3.0073]
[1672801657983,11.0073,1252.7,1251.7,3.0073]
[1672801658183,11.0073,1252.7,1251.3,1.1814]
[1672801658184,3.0073,1252.5,1251.9,3.0073]
[1672801658401,3.0073,1252.5,1251.7,3.0073]
[1672801658718,3.0073,1252.1,1251.7,3.0073]
[1672801659353,5.0,1253.7,1251.8,5.0]
[1672801659563,9.1814,1253.3,1251.9,3.0073]
[1672801659770,1.1814,1253.3,1252.1,3.0073]
[1672801660091,4.1887,1253.3,1252.5,3.0073]
[1672801660296,1.1814,1253.3,1252.7,3.0073]
[1672801660508,3.0,1253.4,1252.7,3.0073]
[1672801660723,3.0,1253.4,1252.9,3.0073]
[1672801661141,3.0,1253.4,1252.7,3.0073]
[1672801661358,3.0,1253.4,1252.9,3.0073]
[1672801661669,3.0,1253.4,1252.9,2.94346088]
[1672801661877,8.0,1253.4,1252.7,3.0073]
[1672801662086,5.0,1253.1,1252.3,3.0073]
[1672801662297,3.0073,1252.9,1252.3,3.0073]
[1672801662823,3.0073,1253.3,1252.5,3.0073]
[1672801663242,3.0073,1253.3,1252.7,3.0073]
[1672801663453,3.0073,1253.3,1252.4,3.0073]
[1672801663663,8.0073,1253.3,1252.4,3.0073]
[1672801663869,5.0,1253.2,1252.2,3.0073]
[1672801664076,3.0073,1253.1,1252.2,3.0073]
[1672801664292,5.0,1252.8,1252.2,3.0073]
[1672801664610,3.0073,1252.3,1251.8,3.0073]
[1672801664818,3.0073,1252.1,1251.8,3.0073]
[1672801665242,3.0073,1252.4,1251.8,3.0073]
[1672801665447,3.0073,1252.2,1251.8,3.0073]
[1672801666178,5.8129,1252.7,1251.9,3.0073]
[1672801666393,3.0,1252.2,1252.0,3.0073]
[1672801666606,3.0,1252.2,1251.8,4.1887]
[1672801667026,6.43293333,1251.9,1251.5,3.0073]
[1672801667441,6.43293333,1251.9,1251.4,3.0073]
[1672801667652,6.43293333,1251.9,1251.0,3.0073]
[1672801668071,6.586007,1251.8,1251.2,3.0073]
[1672801668282,6.586007,1251.8,1251.1,3.0073]
[1672801668497,6.43293333,1251.2,1251.1,3.0073]
[1672801668912,6.43293333,1251.2,1250.8,3.0073]
[1672801669331,3.0,1251.1,1250.8,3.0073]
[1672801669543,6.586007,1251.8,1251.2,3.0073]
[1672801669759,7.55606644,1251.9,1251.7,3.0073]
[1672801669962,7.55606644,1251.9,1251.3,3.0073]
[1672801670177,7.08880204,1251.5,1251.3,6.1814]
[1672801670391,7.55606644,1251.9,1251.4,6.0073]
[1672801670705,7.55606644,1251.9,1251.6,3.0073]
[1672801670914,7.55606644,1251.9,1251.8,3.0073]
[1672801671333,7.55606644,1251.9,1251.5,3.0073]
[1672801671548,6.49611172,1251.7,1251.4,4.1814]
[1672801671757,6.49611172,1251.7,1251.6,3.0073]
[1672801673013,7.55606644,1251.9,1251.6,3.0073]
[1672801673332,4.88261172,1252.0,1251.8,3.0073]
[1672801673542,0.5,1252.4,1251.9,9.1814]
[1672801673859,3.0,1252.7,1252.2,3.0073]
[1672801674065,3.0,1252.7,1252.4,3.0073]
[1672801674485,3.0,1252.9,1252.4,3.0073]
[1672801674692,6.0,1252.9,1252.4,3.0073]
[1672801674903,3.0,1252.7,1252.2,3.0073]
[1672801675112,3.0,1252.8,1252.2,3.0073]
[1672801675321,3.0073,1252.7,1252.2,2.7179]
[1672801675536,3.0,1252.6,1252.2,2.7179]
[1672801675746,3.0073,1252.5,1252.0,3.0073]
[1672801675955,3.0,1252.9,1252.2,3.0073]
[1672801676163,3.0,1252.9,1252.4,3.0073]
[1672801676691,3.0073,1252.6,1252.1,1.1814]
[1672801676900,3.0073,1252.6,1251.8,3.0073]
[1672801677118,3.0073,1253.2,1252.4,3.0073]
[1672801677429,7.08642248,1253.4,1253.1,3.0073]
[1672801677635,7.08642248,1253.4,1253.3,3.0073]
[1672801677846,10.08642248,1253.7,1253.3,3.0073]
[1672801678050,0.5,1253.6,1253.3,3.0073]
[1672801678260,8.57453864,1253.6,1253.1,3.0073]
[1672801678470,8.57453864,1253.6,1253.3,3.0073]
[1672801678682,8.57453864,1253.6,1253.4,0.5]
[1672801678891,8.57453864,1253.6,1253.3,3.0073]
[1672801679525,8.57453864,1253.6,1252.8,4.1887]
[1672801679733,11.58183864,1253.6,1252.8,3.0073]
[1672801679941,3.5073,1253.6,1252.8,3.0073]
[1672801680154,3.0073,1253.4,1252.8,3.0073]
[1672801680360,3.0073,1253.4,1252.5,3.0073]
[1672801680572,3.0073,1253.2,1252.3,3.0073]
[1672801680781,10.0,1253.3,1252.1,3.0073]
[1672801680782,3.0073,1253.0,1252.1,3.0073]
[1672801681206,3.0073,1252.8,1252.1,3.0073]
[1672801681413,3.0073,1252.7,1252.2,5.0]
[1672801681625,7.08642248,1252.9,1252.2,5.0]
[1672801681832,3.0,1252.8,1252.3,3.0073]
[1672801682042,7.08642248,1253.4,1252.8,0.349]
[1672801682257,7.08642248,1253.4,1253.2,3.0073]
[1672801682673,10.08642248,1253.7,1253.2,3.0073]
[1672801683095,7.08642248,1253.7,1253.6,3.0073]
[1672801683519,7.08642248,1253.7,1253.0,9.1887]
[1672801683836,11.27512248,1253.7,1253.0,3.0073]
[1672801684151,3.0073,1253.5,1252.8,3.3563]
[1672801684468,0.5,1253.4,1252.8,8.0073]
[1672801684670,7.08642248,1253.7,1253.3,3.0073]
[1672801684882,7.08642248,1254.1,1253.6,5.0]
[1672801685093,7.08642248,1254.1,1253.7,3.0073]
[1672801685298,7.08642248,1254.1,1253.9,3.0073]
[1672801685512,7.08642248,1254.4,1253.9,3.0073]
[1672801685938,7.08642248,1254.4,1253.6,1.1814]
[1672801686139,10.09372248,1254.4,1253.6,1.1814]
[1672801686352,3.0073,1254.2,1253.2,3.0073]
[1672801686773,3.0073,1254.0,1253.4,8.0073]
[1672801686986,7.08642248,1254.4,1253.8,5.0]
[1672801687197,7.08642248,1254.4,1254.2,3.0073]
[1672801688462,7.08642248,1254.5,1254.3,5.0]
[1672801688667,7.08642248,1254.5,1254.4,3.0073]
[1672801689087,7.08642248,1254.8,1254.4,3.0073]
[1672801689302,7.08642248,1254.8,1254.7,3.0073]
[1672801689622,7.55606644,1255.8,1254.9,3.0073]
[1672801689827,7.55606644,1255.8,1255.6,3.0073]
[1672801690029,2.2924,1256.0,1255.6,2.81617155]
[1672801690243,2.2924,1256.0,1255.0,3.0073]
[1672801690244,1.111,1256.0,1255.0,3.0073]
[1672801690454,1.1814,1255.6,1254.8,3.0073]
[1672801690876,1.1814,1254.9,1254.4,3.0073]
[1672801691289,3.0073,1255.2,1254.4,3.0073]
[1672801691500,3.0073,1255.0,1254.5,3.0]
[1672801691715,3.0073,1255.0,1254.4,5.0]
[1672801691920,1.0073,1255.1,1254.6,2.7]
[1672801692139,2.5,1254.9,1254.2,3.0073]
[1672801692462,2.5,1254.9,1254.4,5.0]
[1672801692772,3.0073,1254.8,1254.4,5.0]
[1672801693090,3.0073,1254.8,1254.5,3.0]
[1672801693510,3.0073,1254.8,1254.0,3.0073]
[1672801693721,3.0073,1254.6,1254.0,5.0]
[1672801694030,3.0073,1254.4,1253.6,8.0073]
[1672801694240,3.0073,1254.4,1253.8,5.0]
[1672801694662,3.0073,1254.4,1253.9,3.0]
[1672801694864,3.0073,1254.4,1253.8,5.0]
[1672801695078,3.0073,1254.2,1253.7,5.0]
[1672801695294,3.0073,1254.2,1253.6,5.0]
[1672801695505,3.0073,1254.2,1253.6,8.0073]
[1672801695717,3.0073,1254.2,1253.6,3.0073]
[1672801696036,128.9927,1253.0,1252.8,10.17786572]
[1672801696240,128.9927,1253.0,1252.9,3.0073]
[1672801696660,128.9927,1253.0,1252.9,12.29399979]
[1672801696865,128.9927,1253.0,1252.9,27.29399979]
[1672801697185,107.41302876,1253.0,1252.9,27.29399979]
[1672801698021,84.56044315,1253.0,1252.9,27.29399979]
[1672801698234,40.04224727,1253.0,1252.9,27.29399979]
[1672801698450,27.03990479,1253.0,1252.9,27.89259979]
[1672801698764,23.43260479,1253.0,1252.9,27.89259979]
[1672801698973,11.83260479,1253.0,1252.9,32.89259979]
[1672801699174,3.0073,1254.3,1253.1,3.0073]
[1672801699387,3.0,1254.7,1254.2,5.0]
[1672801699599,6.0073,1254.7,1254.5,5.0]
[1672801699918,6.0073,1254.7,1253.9,18.0073]
[1672801700120,3.0,1254.6,1254.3,1.74943047]
[1672801700335,3.0,1254.7,1254.1,28.36124349]
[1672801700545,3.0,1254.7,1254.3,1.81716695]
[1672801700857,3.0,1254.7,1254.1,0.90889976]
[1672801701068,6.0073,1254.6,1254.1,0.90889976]
[1672801701601,3.0073,1254.4,1254.1,0.00089976]
[1672801701801,3.0073,1254.2,1253.8,3.0073]
[1672801702123,3.0,1254.1,1253.5,3.0073]
[1672801702327,3.0,1254.1,1253.7,10.22446123]
[1672801702538,3.0,1254.1,1253.5,3.0073]
[1672801702747,3.0,1254.1,1253.7,10.36812038]
[1672801702955,3.0,1253.9,1253.7,0.00012038]
[1672801703171,3.0,1253.9,1253.3,18.0073]
[1672801703386,3.0,1253.9,1253.3,3.0073]
[1672801703806,3.0,1253.9,1253.3,13.48777168]
[1672801704335,3.0073,1253.8,1253.3,13.48777168]
[1672801704536,3.0,1253.7,1253.3,13.48777168]
[1672801704746,3.0,1253.7,1253.3,10.48047168]
[1672801705058,3.0,1253.4,1253.1,10.48047168]
[1672801705272,3.0,1253.4,1252.9,0.34261852]
[1672801705273,3.0,1253.2,1252.9,0.34261852]
[1672801705482,3.0,1253.0,1252.5,3.0073]
[1672801705696,6.0073,1253.0,1252.9,10.33297826]
[1672801705905,6.0073,1253.0,1252.7,10.30281139]
[1672801706117,3.0,1252.8,1252.5,3.0073]
[1672801706328,3.0,1252.8,1252.7,10.17501938]
[1672801706537,6.158,1252.9,1252.5,14.3527372]
[1672801706957,3.158,1252.9,1252.7,0.07587114]
[1672801707168,3.158,1252.9,1252.5,14.3527372]
[1672801707372,3.158,1252.9,1252.7,9.85792086]
[1672801707589,3.158,1252.9,1252.5,14.3527372]
[1672801707590,3.158,1252.9,1252.5,11.3454372]
[1672801708220,3.0073,1252.6,1252.5,11.3454372]
[1672801708430,3.0073,1252.8,1252.5,10.51219532]
[1672801708648,3.0,1252.7,1252.5,10.51219532]
[1672801708854,6.0073,1252.8,1252.5,10.51219532]
[1672801709384,3.0,1252.6,1251.9,3.0073]
[1672801709694,3.0073,1252.6,1251.9,0.83348635]
[1672801709903,3.0,1252.3,1251.9,0.83348635]
[1672801710109,10.0,1252.3,1251.9,0.83348635]
[1672801710325,3.0,1252.3,1251.9,10.17817598]
[1672801710534,3.0073,1252.4,1251.9,10.17817598]
[1672801710953,3.0,1252.2,1251.9,10.17817598]
[1672801711167,3.0,1252.2,1251.7,10.17817598]
[1672801711168,3.0,1252.0,1251.7,10.17817598]
[1672801711387,3.0,1251.8,1251.5,10.19217375]
[1672801711581,3.0073,1251.9,1251.5,10.19217375]
[1672801711798,13.0,1252.0,1251.7,10.1443625]
[1672801712013,3.0,1252.0,1251.6,3.0073]
[1672801712227,13.0,1252.2,1251.9,5.0]
[1672801712433,13.0,1252.4,1252.1,5.0]
[1672801712640,13.0,1252.4,1252.3,5.0]
[1672801713275,16.0073,1252.4,1252.3,5.0]
[1672801714006,1.5,1252.3,1252.0,3.0073]
[1672801714211,13.0,1252.2,1252.0,3.0073]
[1672801714638,1.5,1252.3,1252.0,3.0073]
[1672801715264,14.5,1252.3,1252.0,3.0073]
[1672801715474,13.0,1252.1,1251.7,10.2900761]
[1672801715685,10.0,1251.9,1251.6,3.0073]
[1672801715896,13.0,1251.9,1251.6,3.0073]
[1672801716114,10.0,1252.1,1251.8,5.0]
[1672801716320,0.5,1252.0,1251.7,2.1]
[1672801716535,4.0,1252.0,1251.7,12.25289652]
[1672801716739,17.0,1252.0,1251.7,2.1]
[1672801717059,17.0,1252.0,1251.7,12.36127694]
[1672801717265,13.0,1251.9,1251.7,10.26127694]
[1672801717478,13.0,1251.9,1251.3,3.42972811]
[1672801717896,13.0,1251.9,1251.5,10.57262231]
[1672801718104,13.0,1251.9,1251.3,3.42972811]
[1672801718529,13.0,1251.7,1251.3,0.42242811]
[1672801718838,13.0,1251.7,1251.1,13.51525183]
[1672801719052,13.0,1251.7,1251.3,13.58752475]
[1672801719265,13.0,1251.7,1251.1,13.51525183]
[1672801719681,13.0,1251.5,1251.1,13.51525183]
[1672801720308,13.0,1251.3,1250.9,13.36820552]
[1672801720524,13.0,1251.2,1250.9,10.36090552]
[1672801720733,13.0,1251.2,1250.7,14.15204295]
[1672801720734,3.0,1251.0,1250.7,14.15204295]
[1672801721052,13.0,1251.0,1250.7,14.15204295]
[1672801721365,13.0,1251.0,1250.7,0.98306556]
[1672801721576,13.0,1250.9,1250.7,0.98306556]
[1672801721993,13.0,1250.9,1250.6,1.96606876]
[1672801722206,8.0,1251.0,1250.6,1.96606876]
[1672801722413,8.0,1250.8,1250.6,1.96606876]
[1672801722627,8.0,1251.0,1250.6,1.96606876]
[1672801722942,4.1887,1251.2,1250.4,3.0073]
[1672801722943,8.0,1250.8,1250.4,3.0073]
[1672801723573,8.0,1250.8,1250.3,10.41760437]
[1672801723574,8.0,1251.0,1250.6,3.0073]
[1672801723891,8.0,1251.2,1250.9,5.0]
[1672801724092,8.0,1251.2,1251.1,5.0]
[1672801724302,8.0,1251.2,1250.8,3.0073]
[1672801725666,3.0073,1251.4,1250.8,3.0073]
[1672801725880,8.0,1251.2,1250.7,10.54865253]
[1672801726088,8.0,1251.2,1250.8,3.0073]
[1672801726509,8.0,1251.2,1250.7,10.54865253]
[1672801726721,8.0,1251.2,1250.6,3.0073]
[1672801726722,8.0,1251.3,1250.6,3.0073]
[1672801726935,8.0,1251.3,1250.8,3.0073]
[1672801727147,8.0,1251.5,1250.8,3.0073]
[1672801727349,8.0,1251.5,1251.0,3.0073]
[1672801727560,3.0073,1251.6,1250.8,3.0073]
[1672801727561,8.0,1251.2,1250.8,3.0073]
[1672801727880,8.0,1251.4,1250.8,3.0073]
[1672801728933,4.1887,1251.6,1250.8,3.0073]
[1672801729145,8.0,1251.5,1251.4,3.0073]
[1672801729345,8.0,1251.9,1251.4,8.0073]
[1672801729669,4.0,1252.0,1251.8,8.0073]
[1672801729876,8.0,1251.9,1251.8,5.0]
[1672801730088,4.0,1252.0,1251.6,3.0073]
[1672801730399,4.0,1252.0,1251.6,13.1783472]
[1672801730615,12.0,1252.0,1251.6,13.1783472]
[1672801730822,4.0,1252.0,1251.6,9.6710472]
[1672801731032,4.0,1252.0,1251.1,3.0073]
[1672801731033,11.0073,1251.7,1251.1,3.0073]
[1672801731240,8.0,1251.5,1250.9,3.0073]
[1672801731449,11.0073,1251.5,1251.0,10.43549996]
[1672801731872,11.0073,1251.3,1250.8,10.35166643]
[1672801732080,4.1814,1251.7,1250.5,3.0073]
[1672801732081,8.0,1251.0,1250.5,3.0073]
[1672801732290,3.0073,1251.1,1250.6,10.26747095]
[1672801732508,8.0,1251.0,1250.6,10.26747095]
[1672801732821,8.0,1250.8,1250.6,10.61531641]
[1672801733136,8.0,1251.0,1250.4,9.89192512]
[1672801733449,3.0073,1251.1,1250.6,10.16323077]
[1672801733652,3.0073,1251.1,1250.5,3.0073]
[1672801733865,3.0073,1251.1,1250.6,13.40246568]
[1672801734077,3.0073,1251.1,1250.6,3.0]
[1672801734498,3.0073,1251.1,1250.6,13.3059989]
[1672801734711,8.0,1251.0,1250.6,10.3059989]
[1672801734920,3.0073,1250.9,1250.6,10.3059989]
[1672801735340,8.0,1250.7,1250.4,9.89192512]
[1672801735759,11.0073,1250.7,1250.2,10.60564395]
[1672801736708,8.0,1250.5,1250.2,10.60564395]
[1672801737024,11.0073,1250.5,1250.2,10.60564395]
[1672801737652,8.0,1250.8,1250.4,5.0]
[1672801737859,8.0,1250.8,1250.6,5.0]
[1672801738171,8.0,1251.1,1250.6,5.0]
[1672801738385,8.0,1251.1,1250.9,5.0]
[1672801738592,3.0073,1251.0,1250.9,5.0]
[1672801738800,3.0073,1251.0,1250.6,5.0]
[1672801739010,8.0,1250.9,1250.6,14.14257393]
[1672801739232,8.0,1251.1,1250.8,5.0]
[1672801739544,8.0,1251.1,1251.0,5.0]
[1672801740165,3.0073,1251.4,1251.0,5.0]
[1672801740480,8.0,1251.3,1251.0,8.0073]
[1672801740695,8.0,1251.3,1251.0,18.40474079]
[1672801740912,8.0,1251.3,1251.0,5.0]
[1672801741753,8.0,1251.3,1251.1,2.0]
[1672801741956,8.0,1251.5,1251.0,18.26457104]
[1672801742691,8.0,1251.5,1251.2,5.0]
[1672801743114,3.0073,1251.7,1251.4,5.0]
[1672801743319,8.0,1251.7,1251.6,5.0]
[1672801743639,8.0,1251.9,1251.6,5.0]
[1672801743849,8.0,1251.9,1251.4,3.0073]
[1672801744168,8.0,1251.9,1251.6,5.0]
[1672801744376,8.0,1251.9,1251.4,13.49853737]
[1672801744582,8.0,1251.9,1251.6,5.47904914]
[1672801744899,8.0,1251.9,1251.6,10.35036141]
[1672801745222,8.0,1251.8,1251.2,17.29574652]
[1672801745426,8.0,1251.6,1251.2,17.29574652]
[1672801745631,8.0,1251.5,1251.2,17.29574652]
[1672801746471,8.0,1251.5,1251.2,14.28844652]
[1672801746687,8.0,1251.3,1251.2,5.0]
[1672801747099,3.0,1251.2,1251.0,3.93508607]
[1672801747418,3.0,1251.2,1250.8,10.48729835]
[1672801747419,4.5,1251.2,1250.8,13.49459835]
[1672801747630,8.0,1250.9,1250.6,10.36194214]
[1672801747839,7.5073,1251.2,1250.4,10.1903632]
[1672801748052,8.0,1250.7,1250.6,10.51030657]
[1672801748258,8.0,1250.7,1250.4,10.1903632]
[1672801748679,3.0073,1251.0,1250.6,10.36426269]
[1672801748890,8.0,1250.7,1250.3,3.0073]
[1672801749212,8.0,1250.6,1250.4,10.41097078]
[1672801749416,8.0,1250.6,1250.3,3.0073]
[1672801749627,8.0,1250.6,1250.4,10.34535153]
[1672801749840,8.0,1250.6,1250.2,11.24536809]
[1672801750270,8.0,1250.6,1250.2,10.41097078]
[1672801750576,8.0,1250.3,1250.2,10.41097078]
[1672801750987,8.0,1250.5,1250.2,10.41097078]
[1672801751199,8.0,1250.5,1250.3,3.0073]
[1672801752671,8.0,1250.5,1250.1,3.0073]
[1672801752885,3.0073,1250.6,1250.1,3.0073]
[1672801753298,10.65190414,1250.8,1250.1,3.0073]
[1672801753514,8.0,1250.3,1250.1,3.0073]
[1672801755190,8.0,1250.3,1250.0,1.111]